fUST/lending_fUST_20250809
["ID","MTS","AMOUNT","RATE_DAILY","PERIOD"]
[378148750,1754749843248,-460.0,0.00022191,2]
[378148752,1754749843258,-460.0,0.00022191,2]
[378148754,1754749843267,-460.0,0.00022191,2]
[378148756,1754749843276,-460.0,0.00022191,2]
[378148758,1754749843285,-460.0,0.00022191,2]
[378148760,1754749843295,-460.0,0.00022191,2]
[378148763,1754749843309,-460.0,0.00022191,2]
[378148765,1754749843319,-460.0,0.00022191,2]
[378148767,1754749843328,-460.0,0.00022191,2]
[378148769,1754749843337,-460.0,0.00022191,2]
[378148771,1754749843348,-332.9916298,0.00022191,2]
[378148772,1754749843358,-580.24,0.00022191,2]
[378148775,1754749843367,-460.0,0.00022191,2]
[378148788,1754749843519,-460.0,0.00022191,2]
[378148789,1754749843529,-460.0,0.00022191,2]
[378148790,1754749843539,-460.0,0.00022191,2]
[378148791,1754749843548,-460.0,0.00022191,2]
[378148793,1754749843557,-460.0,0.00022191,2]
[378148795,1754749843566,-460.0,0.00022191,2]
[378148797,1754749843575,-460.0,0.00022191,2]
[378148799,1754749843584,-598.0,0.00022191,2]
[378148802,1754749843594,-460.0,0.00022191,2]
[378148804,1754749843604,-460.0,0.00022191,2]
[378148806,1754749843614,-460.0,0.00022191,2]
[378148808,1754749843623,-460.0,0.00022191,2]
[378148810,1754749843635,-460.0,0.00022191,2]
[378148812,1754749843644,-500.0,0.00022191,2]
[378148814,1754749843655,-460.0,0.00022191,2]
[378148816,1754749843668,-460.0,0.00022191,2]
[378148818,1754749843687,-465.48733202,0.00022191,2]
[378148820,1754749843698,-460.0,0.00022191,2]
[378148822,1754749843707,-460.0,0.00022191,2]
[378148824,1754749843717,-460.0,0.00022191,2]
[378148826,1754749843726,-460.0,0.00022191,2]
[378148828,1754749843735,-460.0,0.00022191,2]
[378148830,1754749843745,-582.22,0.00022191,2]
[378148832,1754749843755,-460.0,0.00022191,2]
[378148834,1754749843764,-460.0,0.00022191,2]
[378148836,1754749843773,-460.0,0.00022191,2]
[378148838,1754749843782,-460.0,0.00022191,2]
[378148840,1754749843792,-460.0,0.00022191,2]
[378148842,1754749843801,-460.0,0.00022191,2]
[378148844,1754749843810,-460.0,0.00022191,2]
[378148846,1754749843819,-460.0,0.00022191,2]
[378148848,1754749843828,-349.14800454,0.00022191,2]
[378148850,1754749843838,-460.0,0.00022191,2]
[378148852,1754749843847,-460.0,0.00022191,2]
[378148854,1754749843856,-460.0,0.00022191,2]
[378148856,1754749843865,-460.0,0.00022191,2]
[378148858,1754749843874,-460.0,0.00022191,2]
[378148860,1754749843885,-460.0,0.00022191,2]
[378148862,1754749843895,-460.0,0.00022191,2]
[378148863,1754749843904,-702.88,0.00022191,2]
[378148865,1754749843914,-460.0,0.00022191,2]
[378148868,1754749843924,-460.0,0.00022191,2]
[378148870,1754749843934,-747.44,0.00022191,2]
[378148872,1754749843943,-451.96522147,0.00022191,2]
[378148874,1754749843953,-460.0,0.00022191,2]
[378148876,1754749843963,-460.0,0.00022191,2]
[378148877,1754749843971,-460.0,0.00022191,2]
[378148880,1754749843981,-1486.02,0.00022191,2]
[378148882,1754749843990,-460.0,0.00022191,2]
[378148884,1754749843999,-616.0,0.00022191,2]
[378148886,1754749844008,-460.0,0.00022191,2]
[378148888,1754749844017,-460.0,0.00022191,2]
[378148890,1754749844027,-460.0,0.00022191,2]
[378148892,1754749844037,-776.49,0.00022191,2]
[378148894,1754749844046,-460.0,0.00022191,2]
[378148896,1754749844055,-654.85,0.00022191,2]
[378148898,1754749844068,-460.0,0.00022191,2]
[378148900,1754749844077,-602.34,0.00022191,2]
[378148902,1754749844086,-460.0,0.00022191,2]
[378148904,1754749844096,-460.0,0.00022191,2]
[378148906,1754749844105,-460.0,0.00022191,2]
[378148908,1754749844114,-578.12163147,0.00022191,2]
[378148910,1754749844123,-707.22,0.00022191,2]
[378148912,1754749844132,-1415.06,0.00022191,2]
[378148914,1754749844142,-460.0,0.00022191,2]
[378148916,1754749844151,-981.01,0.00022191,2]
[378148918,1754749844160,-460.0,0.00022191,2]
[378148920,1754749844170,-460.0,0.00022191,2]
[378148922,1754749844179,-460.0,0.00022191,2]
[378148924,1754749844189,-460.0,0.00022191,2]
[378148926,1754749844198,-460.0,0.00022191,2]
[378148928,1754749844207,-460.0,0.00022191,2]
[378148930,1754749844217,-460.0,0.00022191,2]
[378148932,1754749844226,-460.0,0.00022191,2]
[378148934,1754749844235,-460.0,0.00022191,2]
[378148936,1754749844244,-460.0,0.00022191,2]
[378148938,1754749844254,-460.0,0.00022191,2]
[378148940,1754749844264,-460.0,0.00022191,2]
[378148942,1754749844273,-1809.31,0.00022191,2]
[378148944,1754749844282,-460.0,0.00022191,2]
[378148946,1754749844292,-460.0,0.00022191,2]
[378148948,1754749844303,-460.0,0.00022191,2]
[378148950,1754749844314,-1460.46,0.00022191,2]
[378148952,1754749844323,-460.0,0.00022191,2]
[378148954,1754749844333,-460.0,0.00022191,2]
[378148956,1754749844342,-460.0,0.00022191,2]
[378148958,1754749844353,-460.0,0.00022191,2]
[378148960,1754749844362,-460.0,0.00022191,2]
[378148962,1754749844372,-460.0,0.00022191,2]
[378148964,1754749844383,-460.0,0.00022191,2]
[378148966,1754749844393,-1265.82,0.00022191,2]
[378148968,1754749844402,-476.92,0.00022191,2]
[378148970,1754749844413,-4072.84,0.00022191,2]
[378148972,1754749844422,-460.0,0.00022191,2]
[378148974,1754749844432,-460.0,0.00022191,2]
[378148976,1754749844443,-460.0,0.00022191,2]
[378148978,1754749844452,-460.0,0.00022191,2]
[378148980,1754749844463,-460.0,0.00022191,2]
[378148982,1754749844472,-460.0,0.00022191,2]
[378148984,1754749844482,-460.0,0.00022191,2]
[378148986,1754749844491,-460.0,0.00022191,2]
[378148988,1754749844501,-501.07347936,0.00022191,2]
[378148990,1754749844510,-460.0,0.00022191,2]
[378148992,1754749844520,-556.77,0.00022191,2]
[378148994,1754749844529,-460.0,0.00022191,2]
[378148996,1754749844539,-394.89674894,0.00022191,2]
[378148998,1754749844548,-460.0,0.00022191,2]
[378149000,1754749844558,-460.0,0.00022191,2]
[378149002,1754749844568,-460.0,0.00022191,2]
[378149004,1754749844577,-775.04,0.00022191,2]
[378149006,1754749844587,-460.0,0.00022191,2]
[378149008,1754749844597,-460.0,0.00022191,2]
[378149010,1754749844607,-460.0,0.00022191,2]
[378149012,1754749844616,-460.0,0.00022191,2]
[378149014,1754749844625,-1375.6,0.00022191,2]
[378149016,1754749844636,-464.83,0.00022191,2]
[378149018,1754749844647,-460.0,0.00022191,2]
[378149020,1754749844656,-460.0,0.00022191,2]
[378149022,1754749844666,-1057.86,0.00022191,2]
[378149024,1754749844676,-460.0,0.00022191,2]
[378149026,1754749844686,-697.23,0.00022191,2]
[378149028,1754749844696,-460.0,0.00022191,2]
[378149030,1754749844706,-460.0,0.00022191,2]
[378149032,1754749844715,-460.0,0.00022191,2]
[378149034,1754749844723,-460.0,0.00022191,2]
[378149036,1754749844733,-460.0,0.00022191,2]
[378149038,1754749844742,-460.0,0.00022191,2]
[378149040,1754749844751,-460.0,0.00022191,2]
[378149042,1754749844760,-473.23326017,0.00022191,2]
[378149044,1754749844770,-460.0,0.00022191,2]
[378149045,1754749844779,-460.0,0.00022191,2]
[378149047,1754749844788,-460.0,0.00022191,2]
[378149049,1754749844797,-227.23214898,0.00022191,2]
[378149051,1754749844807,-1216.53,0.00022191,2]
[378149053,1754749844817,-594.46,0.00022191,2]
[378149055,1754749844826,-460.0,0.00022191,2]
[378149057,1754749844836,-460.0,0.00022191,2]
[378149059,1754749844845,-1300.26,0.00022191,2]
[378149061,1754749844854,-460.0,0.00022191,2]
[378149063,1754749844864,-324.62236031,0.00022191,2]
[378149065,1754749844874,-1109.08,0.00022191,2]
[378149068,1754749844885,-460.0,0.00022191,2]
[378149070,1754749844894,-460.0,0.00022191,2]
[378149071,1754749844904,-460.0,0.00022191,2]
[378149074,1754749844913,-460.0,0.00022191,2]
[378149076,1754749844922,-452.60459102,0.00022191,2]
[378149077,1754749844931,-847.56,0.00022191,2]
[378149079,1754749844941,-2267.02,0.00022191,2]
[378149082,1754749844951,-584.56,0.00022191,2]
[378149084,1754749844960,-460.0,0.00022191,2]
[378149086,1754749844969,-460.0,0.00022191,2]
[378149088,1754749844979,-460.0,0.00022191,2]
[378149090,1754749844987,-460.0,0.00022191,2]
[378149092,1754749844997,-470.67233647,0.00022191,2]
[378149094,1754749845007,-288.2804357,0.00022191,2]
[378149096,1754749845017,-460.0,0.00022191,2]
[378149098,1754749845026,-460.0,0.00022191,2]
[378149100,1754749845036,-908.88071238,0.00022212,2]
[378149102,1754749845045,-151.0,0.00022364,2]
[378149104,1754749845054,-151.0,0.00022364,2]
[378149106,1754749845063,-500.0,0.00022364,2]
[378149107,1754749845072,-151.0,0.00022364,2]
[378149109,1754749845081,-151.0,0.00022364,2]
[378149112,1754749845091,-151.0,0.00022364,2]
[378149114,1754749845100,-151.0,0.00022364,2]
[378149116,1754749845109,-460.0,0.00022465,2]
[378149118,1754749845119,-460.0,0.00022465,2]
[378149120,1754749845128,-466.0465682,0.00022465,2]
[378149122,1754749845138,-460.0,0.00022465,2]
[378149124,1754749845147,-435.95517016,0.00022465,2]
[378149126,1754749845156,-460.0,0.00022465,2]
[378149128,1754749845166,-460.0,0.00022465,2]
[378149130,1754749845175,-460.0,0.00022465,2]
[378149132,1754749845184,-460.0,0.00022465,2]
[378149134,1754749845194,-460.0,0.00022465,2]
[378149136,1754749845203,-585.92818546,0.00022465,2]
[378149138,1754749845213,-460.0,0.00022465,2]
[378149140,1754749845222,-462.7090301,0.00022465,2]
[378149142,1754749845232,-460.0,0.00022465,2]
[378149144,1754749845240,-225.82892987,0.00022465,2]
[378149146,1754749845249,-477.3729841,0.00022465,2]
[378149148,1754749845258,-460.0,0.00022465,2]
[378149150,1754749845268,-580.24,0.00022465,2]
[378149151,1754749845277,-460.0,0.00022465,2]
[378149153,1754749845287,-460.0,0.00022465,2]
[378149156,1754749845296,-460.0,0.00022465,2]
[378149158,1754749845310,-460.0,0.00022465,2]
[378149160,1754749845319,-460.0,0.00022465,2]
[378149162,1754749845328,-460.0,0.00022465,2]
[378149164,1754749845339,-598.0,0.00022465,2]
[378149166,1754749845348,-460.0,0.00022465,2]
[378149168,1754749845357,-460.0,0.00022465,2]
[378149170,1754749845367,-460.0,0.00022465,2]
[378149172,1754749845377,-460.0,0.00022465,2]
[378149174,1754749845387,-460.0,0.00022465,2]
[378149176,1754749845396,-460.0,0.00022465,2]
[378149178,1754749845406,-460.0,0.00022465,2]
[378149179,1754749845415,-460.0,0.00022465,2]
[378149182,1754749845424,-460.0,0.00022465,2]
[378149183,1754749845434,-460.0,0.00022465,2]
[378149185,1754749845443,-460.0,0.00022465,2]
[378149188,1754749845453,-582.22,0.00022465,2]
[378149189,1754749845462,-460.0,0.00022465,2]
[378149192,1754749845472,-460.0,0.00022465,2]
[378149193,1754749845482,-460.0,0.00022465,2]
[378149195,1754749845491,-460.0,0.00022465,2]
[378149197,1754749845501,-460.0,0.00022465,2]
[378149199,1754749845510,-460.0,0.00022465,2]
[378149202,1754749845519,-460.0,0.00022465,2]
[378149204,1754749845528,-460.0,0.00022465,2]
[378149206,1754749845537,-460.0,0.00022465,2]
[378149208,1754749845547,-702.88,0.00022465,2]
[378149210,1754749845556,-747.44,0.00022465,2]
[378149211,1754749845565,-460.0,0.00022465,2]
[378149213,1754749845574,-488.50395581,0.00022465,2]
[378149216,1754749845583,-1486.02,0.00022465,2]
[378149217,1754749845592,-460.0,0.00022465,2]
[378149220,1754749845602,-616.0,0.00022465,2]
[378149222,1754749845611,-460.0,0.00022465,2]
[378149224,1754749845620,-460.0,0.00022465,2]
[378149225,1754749845629,-776.49,0.00022465,2]
[378149227,1754749845639,-460.0,0.00022465,2]
[378149229,1754749845648,-654.85,0.00022465,2]
[378149231,1754749845657,-460.0,0.00022465,2]
[378149233,1754749845666,-602.34,0.00022465,2]
[378149235,1754749845675,-460.0,0.00022465,2]
[378149237,1754749845685,-460.0,0.00022465,2]
[378149239,1754749845694,-707.22,0.00022465,2]
[378149241,1754749845704,-1415.06,0.00022465,2]
[378149244,1754749845714,-981.01,0.00022465,2]
[378149246,1754749845723,-460.0,0.00022465,2]
[378149248,1754749845733,-460.0,0.00022465,2]
[378149250,1754749845742,-460.0,0.00022465,2]
[378149252,1754749845752,-460.0,0.00022465,2]
[378149254,1754749845761,-460.0,0.00022465,2]
[378149256,1754749845771,-461.53,0.00022465,2]
[378149258,1754749845779,-460.0,0.00022465,2]
[378149260,1754749845789,-460.0,0.00022465,2]
[378149262,1754749845798,-460.0,0.00022465,2]
[378149264,1754749845807,-1809.31,0.00022465,2]
[378149266,1754749845817,-460.0,0.00022465,2]
[378149268,1754749845826,-466.54363822,0.00022465,2]
[378149270,1754749845835,-1460.46,0.00022465,2]
[378149272,1754749845845,-460.0,0.00022465,2]
[378149274,1754749845854,-460.0,0.00022465,2]
[378149276,1754749845864,-460.0,0.00022465,2]
[378149278,1754749845873,-460.0,0.00022465,2]
[378149280,1754749845884,-293.80265538,0.00022465,2]
[378149282,1754749845893,-460.0,0.00022465,2]
[378149284,1754749845902,-460.0,0.00022465,2]
[378149286,1754749845911,-1265.82,0.00022465,2]
[378149288,1754749845922,-476.92,0.00022465,2]
[378149290,1754749845931,-4072.84,0.00022465,2]
[378149292,1754749845940,-460.0,0.00022465,2]
[378149294,1754749845949,-460.0,0.00022465,2]
[378149296,1754749845958,-460.0,0.00022465,2]
[378149298,1754749845968,-460.0,0.00022465,2]
[378149300,1754749845977,-460.0,0.00022465,2]
[378149302,1754749845986,-460.0,0.00022465,2]
[378149304,1754749845995,-460.0,0.00022465,2]
[378149306,1754749846004,-460.0,0.00022465,2]
[378149308,1754749846013,-556.77,0.00022465,2]
[378149310,1754749846025,-460.0,0.00022465,2]
[378149312,1754749846034,-460.0,0.00022465,2]
[378149314,1754749846043,-460.0,0.00022465,2]
[378149316,1754749846053,-460.0,0.00022465,2]
[378149318,1754749846061,-775.04,0.00022465,2]
[378149320,1754749846070,-460.0,0.00022465,2]
[378149322,1754749846080,-460.0,0.00022465,2]
[378149324,1754749846090,-460.0,0.00022465,2]
[378149326,1754749846100,-1375.6,0.00022465,2]
[378149328,1754749846110,-464.83,0.00022465,2]
[378149330,1754749846118,-396.29942411,0.00022465,2]
[378149332,1754749846128,-1057.86,0.00022465,2]
[378149334,1754749846137,-697.23,0.00022465,2]
[378149336,1754749846147,-460.0,0.00022465,2]
[378149338,1754749846156,-460.0,0.00022465,2]
[378149340,1754749846166,-460.0,0.00022465,2]
[378149342,1754749846175,-213.2644599,0.00022465,2]
[378149344,1754749846184,-460.0,0.00022465,2]
[378149346,1754749846193,-460.0,0.00022465,2]
[378149348,1754749846203,-460.0,0.00022465,2]
[378149350,1754749846212,-460.0,0.00022465,2]
[378149352,1754749846221,-1216.53,0.00022465,2]
[378149354,1754749846230,-594.46,0.00022465,2]
[378149356,1754749846240,-460.0,0.00022465,2]
[378149358,1754749846249,-460.0,0.00022465,2]
[378149360,1754749846258,-1300.26,0.00022465,2]
[378149362,1754749846267,-460.0,0.00022465,2]
[378149364,1754749846276,-1109.08,0.00022465,2]
[378149366,1754749846286,-460.0,0.00022465,2]
[378149368,1754749846295,-460.0,0.00022465,2]
[378149370,1754749846307,-460.0,0.00022465,2]
[378149372,1754749846317,-847.56,0.00022465,2]
[378149374,1754749846327,-2267.02,0.00022465,2]
[378149376,1754749846336,-584.56,0.00022465,2]
[378149378,1754749846347,-460.0,0.00022465,2]
[378149380,1754749846356,-460.0,0.00022465,2]
[378149382,1754749846366,-501.01,0.00022465,2]
[378149384,1754749846375,-460.0,0.00022465,2]
[378149386,1754749846385,-460.0,0.00022465,2]
[378149388,1754749846399,-500.0,0.00022473,2]
[378149390,1754749846407,-500.0,0.00022473,2]
[378149392,1754749846417,-500.0,0.00022473,2]
[378149407,1754749846549,-500.0,0.00022521,2]
[378149409,1754749846559,-500.0,0.00022521,2]
[378149411,1754749846569,-908.88071238,0.00022608,2]
[378149413,1754749846578,-500.0,0.00022638,2]
[378149415,1754749846588,-160.0,0.00022675,2]
[378149417,1754749846598,-160.0,0.00022677,2]
[378149419,1754749846607,-160.0,0.00022677,2]
[378149421,1754749846617,-461.55179734,0.00022677,2]
[378149423,1754749846626,-527.77735381,0.00022677,2]
[378149426,1754749846636,-216.61183532,0.00022677,2]
[378149428,1754749846646,-842.95011917,0.00022677,2]
[378149430,1754749846655,-160.0,0.00022677,2]
[378149432,1754749846665,-312.16666667,0.00022677,2]
[378149433,1754749846674,-231.92402426,0.00022677,2]
[378149436,1754749846684,-12666.14847857,0.00022677,2]
[378149438,1754749846694,-160.0,0.00022677,2]
[378149440,1754749846703,-160.0,0.00022677,2]
[378149442,1754749846713,-215.40758176,0.00022677,2]
[378149444,1754749846722,-267.20857264,0.00022693,2]
[378149446,1754749846736,-460.0,0.00022739,2]
[378149448,1754749846755,-460.0,0.00022739,2]
[378149450,1754749846775,-460.0,0.00022739,2]
[378149452,1754749846796,-460.0,0.00022739,2]
[378149454,1754749846814,-571.13,0.00022739,2]
[378149456,1754749846824,-460.0,0.00022739,2]
[378149458,1754749846833,-496.69664594,0.00022739,2]
[378149460,1754749846843,-460.0,0.00022739,2]
[378149462,1754749846853,-391.16315626,0.00022739,2]
[378149464,1754749846864,-580.24,0.00022739,2]
[378149466,1754749846874,-460.0,0.00022739,2]
[378149468,1754749846883,-460.0,0.00022739,2]
[378149491,1754749847099,-460.0,0.00022739,2]
[378149493,1754749847109,-460.0,0.00022739,2]
[378149495,1754749847119,-460.0,0.00022739,2]
[378149497,1754749847128,-460.0,0.00022739,2]
[378149499,1754749847141,-598.0,0.00022739,2]
[378149501,1754749847150,-460.0,0.00022739,2]
[378149503,1754749847161,-460.0,0.00022739,2]
[378149505,1754749847172,-257.60219491,0.00022739,2]
[378149508,1754749847182,-460.0,0.00022739,2]
[378149509,1754749847193,-460.0,0.00022739,2]
[378149511,1754749847204,-460.0,0.00022739,2]
[378149513,1754749847214,-460.0,0.00022739,2]
[378149515,1754749847225,-590.99528492,0.00022739,2]
[378149517,1754749847236,-460.0,0.00022739,2]
[378149519,1754749847247,-582.22,0.00022739,2]
[378149521,1754749847257,-460.0,0.00022739,2]
[378149523,1754749847267,-460.0,0.00022739,2]
[378149525,1754749847278,-460.0,0.00022739,2]
[378149527,1754749847288,-460.0,0.00022739,2]
[378149529,1754749847298,-460.0,0.00022739,2]
[378149531,1754749847313,-460.0,0.00022739,2]
[378149533,1754749847322,-460.0,0.00022739,2]
[378149535,1754749847332,-702.88,0.00022739,2]
[378149537,1754749847342,-747.44,0.00022739,2]
[378149539,1754749847352,-460.0,0.00022739,2]
[378149541,1754749847361,-1486.02,0.00022739,2]
[378149543,1754749847371,-460.0,0.00022739,2]
[378149545,1754749847381,-616.0,0.00022739,2]
[378149547,1754749847395,-460.0,0.00022739,2]
[378149549,1754749847405,-776.49,0.00022739,2]
[378149552,1754749847415,-654.85,0.00022739,2]
[378149553,1754749847425,-460.0,0.00022739,2]
[378149556,1754749847433,-602.34,0.00022739,2]
[378149558,1754749847444,-460.0,0.00022739,2]
[378149560,1754749847454,-460.0,0.00022739,2]
[378149562,1754749847464,-707.22,0.00022739,2]
[378149564,1754749847474,-1415.06,0.00022739,2]
[378149566,1754749847484,-460.0,0.00022739,2]
[378149568,1754749847494,-460.0,0.00022739,2]
[378149570,1754749847504,-981.01,0.00022739,2]
[378149572,1754749847513,-460.0,0.00022739,2]
[378149573,1754749847523,-460.0,0.00022739,2]
[378149576,1754749847533,-460.0,0.00022739,2]
[378149577,1754749847543,-460.0,0.00022739,2]
[378149579,1754749847553,-460.0,0.00022739,2]
[378149582,1754749847563,-1809.31,0.00022739,2]
[378149583,1754749847572,-467.69078397,0.00022739,2]
[378149585,1754749847582,-1460.46,0.00022739,2]
[378149588,1754749847592,-460.0,0.00022739,2]
[378149590,1754749847602,-460.0,0.00022739,2]
[378149591,1754749847612,-460.0,0.00022739,2]
[378149594,1754749847622,-476.83307238,0.00022739,2]
[378149595,1754749847631,-460.0,0.00022739,2]
[378149597,1754749847644,-1265.82,0.00022739,2]
[378149599,1754749847653,-476.92,0.00022739,2]
[378149601,1754749847663,-4072.84,0.00022739,2]
[378149603,1754749847673,-460.0,0.00022739,2]
[378149604,1754749847682,-460.0,0.00022739,2]
[378149605,1754749847692,-460.0,0.00022739,2]
[378149606,1754749847701,-460.0,0.00022739,2]
[378149607,1754749847710,-429.75,0.00022739,2]
[378149608,1754749847720,-460.0,0.00022739,2]
[378149609,1754749847729,-460.0,0.00022739,2]
[378149610,1754749847738,-556.77,0.00022739,2]
[378149611,1754749847748,-460.0,0.00022739,2]
[378149612,1754749847757,-460.0,0.00022739,2]
[378149613,1754749847766,-460.0,0.00022739,2]
[378149614,1754749847775,-460.0,0.00022739,2]
[378149616,1754749847784,-775.04,0.00022739,2]
[378149617,1754749847794,-460.0,0.00022739,2]
[378149618,1754749847803,-460.0,0.00022739,2]
[378149620,1754749847812,-460.0,0.00022739,2]
[378149622,1754749847821,-1375.6,0.00022739,2]
[378149624,1754749847831,-464.83,0.00022739,2]
[378149626,1754749847840,-1057.86,0.00022739,2]
[378149628,1754749847849,-697.23,0.00022739,2]
[378149630,1754749847859,-460.0,0.00022739,2]
[378149632,1754749847868,-460.0,0.00022739,2]
[378149634,1754749847878,-460.0,0.00022739,2]
[378149636,1754749847888,-460.0,0.00022739,2]
[378149638,1754749847898,-460.0,0.00022739,2]
[378149640,1754749847907,-460.0,0.00022739,2]
[378149642,1754749847917,-1216.53,0.00022739,2]
[378149644,1754749847926,-594.46,0.00022739,2]
[378149646,1754749847936,-460.0,0.00022739,2]
[378149648,1754749847946,-460.0,0.00022739,2]
[378149650,1754749847956,-1300.26,0.00022739,2]
[378149652,1754749847965,-478.33011525,0.00022739,2]
[378149654,1754749847975,-1109.08,0.00022739,2]
[378149656,1754749847984,-460.0,0.00022739,2]
[378149658,1754749847994,-460.0,0.00022739,2]
[378149660,1754749848003,-460.0,0.00022739,2]
[378149662,1754749848013,-847.56,0.00022739,2]
[378149664,1754749848023,-2267.02,0.00022739,2]
[378149666,1754749848032,-584.56,0.00022739,2]
[378149667,1754749848041,-581.40576508,0.00022739,2]
[378149669,1754749848051,-538.71538902,0.00022739,2]
[378149671,1754749848061,-498.33,0.00022739,2]
[378149673,1754749848071,-837.0,0.0002277,2]
[378149675,1754749848081,-265.0,0.00022795,2]
[378149677,1754749848090,-500.0,0.00022912,2]
[378149679,1754749848100,-837.0,0.00022919,2]
[378149681,1754749848110,-40281.21195422,0.0002299,2]
[378149683,1754749848121,-160.0,0.00023,2]
[378149685,1754749848131,-908.88071238,0.00023004,2]
[378149687,1754749848142,-460.0,0.00023013,2]
[378149689,1754749848152,-460.0,0.00023013,2]
[378149691,1754749848162,-460.0,0.00023013,2]
[378149693,1754749848173,-460.0,0.00023013,2]
[378149695,1754749848183,-460.0,0.00023013,2]
[378149697,1754749848192,-580.24,0.00023013,2]
[378149699,1754749848202,-460.0,0.00023013,2]
[378149701,1754749848211,-460.0,0.00023013,2]
[378149703,1754749848221,-460.0,0.00023013,2]
[378149705,1754749848231,-460.0,0.00023013,2]
[378149707,1754749848240,-460.0,0.00023013,2]
[378149709,1754749848249,-598.0,0.00023013,2]
[378149711,1754749848259,-460.0,0.00023013,2]
[378149713,1754749848269,-460.0,0.00023013,2]
[378149715,1754749848278,-460.0,0.00023013,2]
[378149717,1754749848291,-460.0,0.00023013,2]
[378149719,1754749848305,-460.0,0.00023013,2]
[378149721,1754749848315,-460.0,0.00023013,2]
[378149723,1754749848325,-460.0,0.00023013,2]
[378149725,1754749848335,-582.22,0.00023013,2]
[378149727,1754749848345,-460.0,0.00023013,2]
[378149729,1754749848355,-460.0,0.00023013,2]
[378149731,1754749848364,-460.0,0.00023013,2]
[378149733,1754749848375,-460.0,0.00023013,2]
[378149735,1754749848388,-460.0,0.00023013,2]
[378149737,1754749848398,-460.0,0.00023013,2]
[378149739,1754749848408,-460.0,0.00023013,2]
[378149741,1754749848418,-702.88,0.00023013,2]
[378149743,1754749848428,-747.44,0.00023013,2]
[378149745,1754749848437,-460.0,0.00023013,2]
[378149747,1754749848448,-1486.02,0.00023013,2]
[378149749,1754749848457,-460.0,0.00023013,2]
[378149751,1754749848467,-616.0,0.00023013,2]
[378149753,1754749848477,-460.0,0.00023013,2]
[378149755,1754749848487,-776.49,0.00023013,2]
[378149757,1754749848496,-654.85,0.00023013,2]
[378149759,1754749848506,-443.34552237,0.00023013,2]
[378149761,1754749848515,-602.34,0.00023013,2]
[378149763,1754749848525,-460.0,0.00023013,2]
[378149765,1754749848535,-460.0,0.00023013,2]
[378149767,1754749848544,-707.22,0.00023013,2]
[378149769,1754749848553,-1415.06,0.00023013,2]
[378149771,1754749848563,-460.0,0.00023013,2]
[378149773,1754749848572,-981.01,0.00023013,2]
[378149774,1754749848583,-460.0,0.00023013,2]
[378149776,1754749848592,-460.0,0.00023013,2]
[378149778,1754749848601,-458.91,0.00023013,2]